[Event "Late-Titled-Tuesday-Blitz-September-05-2023"]
[Site "Chess.com"]
[Date "2023.09.05"]
[Round "7"]
[White "Defenstrator"]
[Black "HajiyevKanan"]
[Result "1/2-1/2"]
[WhiteElo "2312"]
[BlackElo "2469"]
[TimeControl "180+1"]
[EndTime "15:20:58 PDT"]
[Termination "Game drawn by 50-move rule"]

1. e4 {[%clk 0:03:00.3]} 1... c6 {[%clk 0:02:57.7]} 2. a4 {[%clk 0:02:58]} 2...
d5 {[%clk 0:02:58.6]} 3. e5 {[%clk 0:02:54.1]} 3... c5 {[%clk 0:02:58.6]} 4. Nf3
{[%clk 0:02:46.2]} 4... Nc6 {[%clk 0:02:56.2]} 5. a5 {[%clk 0:02:44.3]} 5...
Nxa5 {[%clk 0:02:51.9]} 6. d4 {[%clk 0:02:42]} 6... Nc6 {[%clk 0:02:36.8]} 7. c3
{[%clk 0:02:27.5]} 7... Bg4 {[%clk 0:02:34.8]} 8. dxc5 {[%clk 0:02:28.3]} 8...
e6 {[%clk 0:02:30.3]} 9. b4 {[%clk 0:02:19.1]} 9... Bxf3 {[%clk 0:02:21.7]} 10.
gxf3 {[%clk 0:02:13.1]} 10... Nxe5 {[%clk 0:02:22.6]} 11. Qa4+ {[%clk
0:01:50.1]} 11... Qd7 {[%clk 0:02:15.9]} 12. Bb5 {[%clk 0:01:46.6]} 12... Nc6
{[%clk 0:02:16.1]} 13. Be2 {[%clk 0:01:35.9]} 13... Nf6 {[%clk 0:02:13.1]} 14.
b5 {[%clk 0:01:28.6]} 14... Ne5 {[%clk 0:02:10.6]} 15. f4 {[%clk 0:01:12.6]}
15... Nc4 {[%clk 0:01:53.1]} 16. Bxc4 {[%clk 0:01:01]} 16... dxc4 {[%clk
0:01:54]} 17. Qxc4 {[%clk 0:01:01.4]} 17... Be7 {[%clk 0:01:44.2]} 18. Be3
{[%clk 0:00:58.9]} 18... O-O {[%clk 0:01:43.7]} 19. Nd2 {[%clk 0:00:56.6]} 19...
Rfc8 {[%clk 0:01:42.8]} 20. Nb3 {[%clk 0:00:51]} 20... Nd5 {[%clk 0:01:37.3]}
21. O-O {[%clk 0:00:42.5]} 21... Qc7 {[%clk 0:01:21.4]} 22. f5 {[%clk 0:00:34]}
22... Bd6 {[%clk 0:01:13.4]} 23. fxe6 {[%clk 0:00:32.7]} 23... Bxh2+ {[%clk
0:01:10.2]} 24. Kh1 {[%clk 0:00:33.6]} 24... fxe6 {[%clk 0:01:08.8]} 25. Nd4
{[%clk 0:00:27.6]} 25... Qe5 {[%clk 0:00:59.3]} 26. Nf3 {[%clk 0:00:27.2]} 26...
Nxe3 {[%clk 0:00:42.6]} 27. fxe3 {[%clk 0:00:19.9]} 27... Qxe3 {[%clk
0:00:42.9]} 28. Rae1 {[%clk 0:00:15.7]} 28... Rxc5 {[%clk 0:00:26.6]} 29. Rxe3
{[%clk 0:00:12.1]} 29... Rxc4 {[%clk 0:00:26.9]} 30. Kxh2 {[%clk 0:00:13]} 30...
a5 {[%clk 0:00:23]} 31. bxa6 {[%clk 0:00:13]} 31... Rxa6 {[%clk 0:00:23.5]} 32.
Ng5 {[%clk 0:00:12.5]} 32... Rg4 {[%clk 0:00:11.9]} 33. Nxe6 {[%clk 0:00:11.8]}
33... h5 {[%clk 0:00:08.4]} 34. Nf4 {[%clk 0:00:10.4]} 34... Ra2+ {[%clk
0:00:07]} 35. Kh3 {[%clk 0:00:08.7]} 35... g6 {[%clk 0:00:07.3]} 36. Re8+ {[%clk
0:00:07.5]} 36... Kg7 {[%clk 0:00:07.9]} 37. Re7+ {[%clk 0:00:08.2]} 37... Kh6
{[%clk 0:00:07.9]} 38. Re3 {[%clk 0:00:03.8]} 38... b5 {[%clk 0:00:07.5]} 39.
Nd3 {[%clk 0:00:03.1]} 39... Ra3 {[%clk 0:00:05.2]} 40. Ne5 {[%clk 0:00:03.6]}
40... Rga4 {[%clk 0:00:02.4]} 41. Nf7+ {[%clk 0:00:04]} 41... Kg7 {[%clk
0:00:03]} 42. Ng5 {[%clk 0:00:04.3]} 42... Rg4 {[%clk 0:00:03.6]} 43. Ne6+
{[%clk 0:00:03.9]} 43... Kh6 {[%clk 0:00:03.8]} 44. Rf6 {[%clk 0:00:03.2]} 44...
Raa4 {[%clk 0:00:03.7]} 45. Nd4 {[%clk 0:00:03.7]} 45... b4 {[%clk 0:00:03.5]}
46. Nf5+ {[%clk 0:00:03.6]} 46... Kg5 {[%clk 0:00:03.6]} 47. Rf8 {[%clk
0:00:02.2]} 47... gxf5 {[%clk 0:00:03.1]} 48. Rf3 {[%clk 0:00:03.1]} 48... bxc3
{[%clk 0:00:02.2]} 49. R8xf5+ {[%clk 0:00:03.2]} 49... Kg6 {[%clk 0:00:03.1]}
50. Rf6+ {[%clk 0:00:04.1]} 50... Kg7 {[%clk 0:00:03.9]} 51. Rf7+ {[%clk
0:00:04.9]} 51... Kg8 {[%clk 0:00:04.6]} 52. Rf8+ {[%clk 0:00:05.6]} 52... Kh7
{[%clk 0:00:05.3]} 53. R8f7+ {[%clk 0:00:06.2]} 53... Rg7 {[%clk 0:00:06.2]} 54.
Rc7 {[%clk 0:00:06.1]} 54... Ra3 {[%clk 0:00:05.6]} 55. Rcxc3 {[%clk 0:00:06.5]}
55... Rxc3 {[%clk 0:00:06.5]} 56. Rxc3 {[%clk 0:00:07.4]} 56... Kh6 {[%clk
0:00:07.1]} 57. Rc6+ {[%clk 0:00:07.9]} 57... Kg5 {[%clk 0:00:07.7]} 58. Rc5+
{[%clk 0:00:08.2]} 58... Kf4 {[%clk 0:00:08.4]} 59. Rxh5 {[%clk 0:00:08.8]}
59... Rg1 {[%clk 0:00:08.9]} 60. Kh2 {[%clk 0:00:09]} 60... Rg4 {[%clk
0:00:07.9]} 61. Rh8 {[%clk 0:00:08.9]} 61... Ke3 {[%clk 0:00:07]} 62. Re8+
{[%clk 0:00:09.1]} 62... Kf2 {[%clk 0:00:07.3]} 63. Rf8+ {[%clk 0:00:08.3]}
63... Ke3 {[%clk 0:00:07.9]} 64. Re8+ {[%clk 0:00:08.9]} 64... Kf4 {[%clk
0:00:08.4]} 65. Rf8+ {[%clk 0:00:09.4]} 65... Ke5 {[%clk 0:00:09]} 66. Re8+
{[%clk 0:00:10]} 66... Kf6 {[%clk 0:00:09.4]} 67. Re1 {[%clk 0:00:10.4]} 67...
Kg5 {[%clk 0:00:09.2]} 68. Re5+ {[%clk 0:00:09.9]} 68... Kf4 {[%clk 0:00:08.6]}
69. Re8 {[%clk 0:00:09.6]} 69... Rg7 {[%clk 0:00:09.1]} 70. Rf8+ {[%clk
0:00:10.1]} 70... Kg4 {[%clk 0:00:09.7]} 71. Rf1 {[%clk 0:00:09.9]} 71... Rh7+
{[%clk 0:00:09.4]} 72. Kg2 {[%clk 0:00:10.4]} 72... Rg7 {[%clk 0:00:08.9]} 73.
Ra1 {[%clk 0:00:09.9]} 73... Rb7 {[%clk 0:00:09.1]} 74. Ra4+ {[%clk 0:00:10.1]}
74... Kf5 {[%clk 0:00:10]} 75. Ra5+ {[%clk 0:00:10.6]} 75... Ke4 {[%clk
0:00:10]} 76. Ra4+ {[%clk 0:00:11]} 76... Kd3 {[%clk 0:00:10.3]} 77. Rg4 {[%clk
0:00:11.2]} 77... Ke3 {[%clk 0:00:10.6]} 78. Rg3+ {[%clk 0:00:11.6]} 78... Ke2
{[%clk 0:00:11.2]} 79. Rg6 {[%clk 0:00:11.3]} 79... Re7 {[%clk 0:00:11.3]} 80.
Kg3 {[%clk 0:00:11.3]} 80... Re3+ {[%clk 0:00:11.4]} 81. Kf4 {[%clk 0:00:11.9]}
81... Rf3+ {[%clk 0:00:11.9]} 82. Ke4 {[%clk 0:00:12.8]} 82... Rh3 {[%clk
0:00:11]} 83. Rg2+ {[%clk 0:00:12.6]} 83... Kf1 {[%clk 0:00:11.7]} 84. Ra2
{[%clk 0:00:12.7]} 84... Rh4+ {[%clk 0:00:11.6]} 85. Kf3 {[%clk 0:00:12.6]}
85... Rh3+ {[%clk 0:00:12.2]} 86. Kg4 {[%clk 0:00:13.2]} 86... Rb3 {[%clk
0:00:13.1]} 87. Rc2 {[%clk 0:00:13.4]} 87... Ke1 {[%clk 0:00:13]} 88. Rh2 {[%clk
0:00:11.9]} 88... Kf1 {[%clk 0:00:13]} 89. Ra2 {[%clk 0:00:11.6]} 89... Rb4+
{[%clk 0:00:13]} 90. Kf3 {[%clk 0:00:12]} 90... Rb3+ {[%clk 0:00:12]} 91. Ke4
{[%clk 0:00:12.9]} 91... Ke1 {[%clk 0:00:11.8]} 92. Kd4 {[%clk 0:00:12.8]} 92...
Kd1 {[%clk 0:00:11.6]} 93. Rh2 {[%clk 0:00:12.6]} 93... Rg3 {[%clk 0:00:11.4]}
94. Ra2 {[%clk 0:00:12.3]} 94... Kc1 {[%clk 0:00:11.1]} 95. Rh2 {[%clk
0:00:12.1]} 95... Kb1 {[%clk 0:00:11.4]} 96. Kc4 {[%clk 0:00:12.4]} 96... Kc1
{[%clk 0:00:12]} 97. Rf2 {[%clk 0:00:12.2]} 97... Kd1 {[%clk 0:00:12.4]} 98. Ra2
{[%clk 0:00:12.5]} 98... Kc1 {[%clk 0:00:12.8]} 99. Kb4 {[%clk 0:00:13.1]} 99...
Kb1 {[%clk 0:00:13.2]} 100. Rh2 {[%clk 0:00:13.4]} 100... Rf3 {[%clk 0:00:13.2]}
101. Kc4 {[%clk 0:00:13.5]} 101... Rg3 {[%clk 0:00:13.5]} 102. Rf2 {[%clk
0:00:13.7]} 102... Re3 {[%clk 0:00:13.5]} 103. Kd4 {[%clk 0:00:14.3]} 103... Rh3
{[%clk 0:00:13.6]} 104. Rf1+ {[%clk 0:00:14.6]} 104... Kc2 {[%clk 0:00:13.7]}
105. Ra1 {[%clk 0:00:14.7]} 105... Kb3 {[%clk 0:00:13.5]} 106. Rb1+ {[%clk
0:00:14.6]} 106... Kc2 {[%clk 0:00:12.8]} 107. Ra1 {[%clk 0:00:14.6]} 107...
Rh4+ {[%clk 0:00:13.7]} 108. Ke3 {[%clk 0:00:14.7]} 108... Rh5 {[%clk
0:00:14.6]} 109. Ra2+ {[%clk 0:00:15.4]} 1/2-1/2

[Event "Late-Titled-Tuesday-Blitz-September-05-2023"]
[Site "Chess.com"]
[Date "2023.09.05"]
[Round "8"]
[White "HeinichessPY"]
[Black "szachmistrz2500"]
[Result "0-1"]
[WhiteElo "2246"]
[BlackElo "2476"]
[TimeControl "180+1"]
[EndTime "15:22:50 PDT"]
[Termination "szachmistrz2500 won by resignation"]

1. e4 {[%clk 0:03:00.9]} 1... c5 {[%clk 0:02:59.1]} 2. Nc3 {[%clk 0:03:00.4]}
2... e6 {[%clk 0:02:56.3]} 3. f4 {[%clk 0:03:01.3]} 3... Nc6 {[%clk 0:02:54]} 4.
Nf3 {[%clk 0:03:01.6]} 4... g6 {[%clk 0:02:53.3]} 5. Bb5 {[%clk 0:03:00.4]} 5...
Nge7 {[%clk 0:02:52]} 6. O-O {[%clk 0:03:00]} 6... Bg7 {[%clk 0:02:52.1]} 7. d3
{[%clk 0:02:59.9]} 7... O-O {[%clk 0:02:42.4]} 8. Be3 {[%clk 0:02:59.9]} 8...
Nd4 {[%clk 0:02:40.3]} 9. Bc4 {[%clk 0:02:55.4]} 9... d5 {[%clk 0:02:39.1]} 10.
Bb3 {[%clk 0:02:51.8]} 10... Nxf3+ {[%clk 0:02:39.2]} 11. Qxf3 {[%clk
0:02:50.9]} 11... d4 {[%clk 0:02:39.4]} 0-1

[Event "Late-Titled-Tuesday-Blitz-September-05-2023"]
[Site "Chess.com"]
[Date "2023.09.05"]
[Round "8"]
[White "koncheto"]
[Black "YEIKO2017"]
[Result "0-1"]
[WhiteElo "2543"]
[BlackElo "2438"]
[TimeControl "180+1"]
[EndTime "15:23:58 PDT"]
[Termination "YEIKO2017 won by resignation"]

1. e4 {[%clk 0:03:00.2]} 1... c5 {[%clk 0:02:59.5]} 2. Nf3 {[%clk 0:02:59.5]}
2... d6 {[%clk 0:03:00]} 3. d4 {[%clk 0:02:59.4]} 3... cxd4 {[%clk 0:03:00.9]}
4. Nxd4 {[%clk 0:02:59.8]} 4... Nf6 {[%clk 0:03:01.1]} 5. f3 {[%clk 0:03:00.3]}
5... g6 {[%clk 0:03:01.4]} 6. c4 {[%clk 0:03:00.6]} 6... Bg7 {[%clk 0:03:01.9]}
7. Nc3 {[%clk 0:03:01.2]} 7... O-O {[%clk 0:03:01.9]} 8. Be3 {[%clk 0:03:01.8]}
8... Nc6 {[%clk 0:03:02.4]} 9. Be2 {[%clk 0:03:01.2]} 9... Bd7 {[%clk
0:03:02.6]} 10. O-O {[%clk 0:03:01.3]} 10... Nxd4 {[%clk 0:03:03.2]} 11. Bxd4
{[%clk 0:03:01.7]} 11... a5 {[%clk 0:03:04]} 12. Qd2 {[%clk 0:02:59.9]} 12...
Bc6 {[%clk 0:03:03.9]} 13. Rac1 {[%clk 0:02:57.4]} 13... a4 {[%clk 0:03:03.9]}
14. Rc2 {[%clk 0:02:55]} 14... Qa5 {[%clk 0:03:02.8]} 15. Rb1 {[%clk 0:02:54.6]}
15... Nd7 {[%clk 0:03:01.3]} 16. Be3 {[%clk 0:02:48.8]} 16... Nc5 {[%clk
0:02:52.9]} 17. b4 {[%clk 0:02:45.9]} 17... axb3 {[%clk 0:02:52.4]} 18. axb3
{[%clk 0:02:46.8]} 18... Qa3 {[%clk 0:02:16.3]} 19. Ra2 {[%clk 0:02:35.1]} 19...
Bxc3 {[%clk 0:02:11.3]} 20. Rxa3 {[%clk 0:02:28.3]} 20... Bxd2 {[%clk
0:02:10.9]} 21. Rxa8 {[%clk 0:02:28.2]} 21... Bxe3+ {[%clk 0:02:11]} 0-1

[Event "Late-Titled-Tuesday-Blitz-September-05-2023"]
[Site "Chess.com"]
[Date "2023.09.05"]
[Round "8"]
[White "AndreiITrifan"]
[Black "venturov"]
[Result "1-0"]
[WhiteElo "2633"]
[BlackElo "2455"]
[TimeControl "180+1"]
[EndTime "15:25:50 PDT"]
[Termination "AndreiITrifan won by resignation"]

1. Nf3 {[%clk 0:03:00]} 1... e6 {[%clk 0:02:57.2]} 2. b3 {[%clk 0:02:55.9]} 2...
f5 {[%clk 0:02:57.3]} 3. Bb2 {[%clk 0:02:56.8]} 3... Nf6 {[%clk 0:02:57.4]} 4.
e3 {[%clk 0:02:55]} 4... Be7 {[%clk 0:02:57.6]} 5. c4 {[%clk 0:02:54.7]} 5...
O-O {[%clk 0:02:58]} 6. Nc3 {[%clk 0:02:54]} 6... d6 {[%clk 0:02:58.5]} 7. d4
{[%clk 0:02:53.3]} 7... Qe8 {[%clk 0:02:58.3]} 8. Qc2 {[%clk 0:02:53]} 8... Qh5
{[%clk 0:02:57.3]} 9. Be2 {[%clk 0:02:50.2]} 9... Qg6 {[%clk 0:02:56.5]} 10. g3
{[%clk 0:02:42]} 10... Nc6 {[%clk 0:02:55.9]} 11. a3 {[%clk 0:02:41.6]} 11... e5
{[%clk 0:02:54.7]} 12. Nd5 {[%clk 0:02:36.7]} 12... e4 {[%clk 0:02:49.4]} 13.
Nd2 {[%clk 0:02:34.8]} 13... Bd8 {[%clk 0:02:45.7]} 14. Nc3 {[%clk 0:02:28.1]}
14... Bd7 {[%clk 0:02:36.3]} 15. O-O-O {[%clk 0:02:19.6]} 15... a5 {[%clk
0:02:29.9]} 16. f3 {[%clk 0:02:16.7]} 16... Re8 {[%clk 0:02:21.4]} 17. fxe4
{[%clk 0:02:12.4]} 17... Nxe4 {[%clk 0:02:22.3]} 18. Ndxe4 {[%clk 0:02:10]}
18... fxe4 {[%clk 0:02:23.2]} 19. Rdf1 {[%clk 0:01:59.7]} 19... Bg5 {[%clk
0:02:23.2]} 20. Nd5 {[%clk 0:01:59.9]} 20... Rac8 {[%clk 0:02:19.5]} 21. h4
{[%clk 0:01:59.2]} 21... Bd8 {[%clk 0:02:16.6]} 22. g4 {[%clk 0:01:56.9]} 22...
Be6 {[%clk 0:02:08]} 23. Nf4 {[%clk 0:01:54]} 23... Qf7 {[%clk 0:02:01.8]} 24.
d5 {[%clk 0:01:41]} 24... Bd7 {[%clk 0:02:00.7]} 25. dxc6 {[%clk 0:01:40.6]}
25... bxc6 {[%clk 0:02:01.6]} 26. Nh5 {[%clk 0:01:37.8]} 26... Qg6 {[%clk
0:01:58.2]} 27. Nxg7 {[%clk 0:01:36.7]} 27... Rf8 {[%clk 0:01:57.9]} 28. Rxf8+
{[%clk 0:01:31.3]} 28... Kxf8 {[%clk 0:01:58.8]} 29. Rf1+ {[%clk 0:01:30.8]}
29... Kg8 {[%clk 0:01:58.8]} 30. Qc3 {[%clk 0:01:22.6]} 30... Bxh4 {[%clk
0:01:55.6]} 31. Nh5 {[%clk 0:01:19]} 1-0

[Event "Late-Titled-Tuesday-Blitz-September-05-2023"]
[Site "Chess.com"]
[Date "2023.09.05"]
[Round "8"]
[White "picturesquecheck"]
[Black "WilsonPalencia21"]
[Result "0-1"]
[WhiteElo "2294"]
[BlackElo "2544"]
[TimeControl "180+1"]
[EndTime "15:25:52 PDT"]
[Termination "WilsonPalencia21 won by resignation"]

1. e4 {[%clk 0:03:00.9]} 1... c5 {[%clk 0:02:55.7]} 2. Nf3 {[%clk 0:03:00.4]}
2... d6 {[%clk 0:02:55.8]} 3. d4 {[%clk 0:03:00.5]} 3... cxd4 {[%clk 0:02:53.1]}
4. Nxd4 {[%clk 0:03:01.4]} 4... Nf6 {[%clk 0:02:52.3]} 5. Nc3 {[%clk 0:03:00.8]}
5... g6 {[%clk 0:02:52.1]} 6. Be3 {[%clk 0:02:57.9]} 6... Bg7 {[%clk 0:02:51.9]}
7. Bc4 {[%clk 0:02:57.1]} 7... O-O {[%clk 0:02:51.3]} 8. f3 {[%clk 0:02:57.5]}
8... Nc6 {[%clk 0:02:51.5]} 9. Qd2 {[%clk 0:02:57.1]} 9... Ne5 {[%clk
0:02:51.4]} 10. Bb3 {[%clk 0:02:56.9]} 10... Bd7 {[%clk 0:02:51.4]} 11. O-O-O
{[%clk 0:02:57]} 11... Rc8 {[%clk 0:02:50.5]} 12. Kb1 {[%clk 0:02:57.5]} 12...
Re8 {[%clk 0:02:49.3]} 13. h4 {[%clk 0:02:56.6]} 13... h5 {[%clk 0:02:48.2]} 14.
Bg5 {[%clk 0:02:52.7]} 14... Rc5 {[%clk 0:02:46.2]} 15. g4 {[%clk 0:02:40.6]}
15... hxg4 {[%clk 0:02:45.4]} 16. h5 {[%clk 0:02:40.9]} 16... Nxh5 {[%clk
0:02:44.7]} 17. Rxh5 {[%clk 0:02:40.4]} 17... gxh5 {[%clk 0:02:44.4]} 18. Rh1
{[%clk 0:02:41]} 18... Ng6 {[%clk 0:02:36.9]} 19. Rxh5 {[%clk 0:02:35.7]} 19...
Qa5 {[%clk 0:02:31]} 20. f4 {[%clk 0:02:03.3]} 20... e6 {[%clk 0:02:20.6]} 21.
f5 {[%clk 0:01:42.5]} 21... exf5 {[%clk 0:02:16.2]} 22. exf5 {[%clk 0:01:42.7]}
22... Bxf5 {[%clk 0:02:10]} 23. Bd8 {[%clk 0:01:29.9]} 23... Rxd8 {[%clk
0:01:50.8]} 24. Nxf5 {[%clk 0:01:24.3]} 24... Rxf5 {[%clk 0:01:49.8]} 25. Bxf7+
{[%clk 0:01:17.1]} 25... Kxf7 {[%clk 0:01:45.8]} 0-1

[Event "Late-Titled-Tuesday-Blitz-September-05-2023"]
[Site "Chess.com"]
[Date "2023.09.05"]
[Round "8"]
[White "infinitegiantkiller"]
[Black "PepeCuenca"]
[Result "0-1"]
[WhiteElo "2490"]
[BlackElo "2666"]
[TimeControl "180+1"]
[EndTime "15:26:01 PDT"]
[Termination "PepeCuenca won by checkmate"]

1. Nf3 {[%clk 0:02:57]} 1... d5 {[%clk 0:02:58.8]} 2. g3 {[%clk 0:02:57.9]} 2...
Nf6 {[%clk 0:02:58.9]} 3. Bg2 {[%clk 0:02:58.8]} 3... e6 {[%clk 0:02:58.8]} 4.
O-O {[%clk 0:02:59.7]} 4... Be7 {[%clk 0:02:58.4]} 5. b3 {[%clk 0:02:59.7]} 5...
O-O {[%clk 0:02:57]} 6. Bb2 {[%clk 0:03:00.6]} 6... b6 {[%clk 0:02:57.4]} 7. d3
{[%clk 0:03:01]} 7... Bb7 {[%clk 0:02:57.5]} 8. Nbd2 {[%clk 0:03:01.8]} 8... c5
{[%clk 0:02:57.3]} 9. c4 {[%clk 0:03:01.7]} 9... d4 {[%clk 0:02:57]} 10. a3
{[%clk 0:03:00.6]} 10... Bd6 {[%clk 0:02:45.3]} 11. b4 {[%clk 0:03:00.2]} 11...
e5 {[%clk 0:02:42.9]} 12. bxc5 {[%clk 0:02:48.7]} 12... bxc5 {[%clk 0:02:43.1]}
13. Rb1 {[%clk 0:02:49.1]} 13... Bc6 {[%clk 0:02:36.8]} 14. e4 {[%clk
0:02:33.5]} 14... Nbd7 {[%clk 0:02:23.2]} 15. Nh4 {[%clk 0:02:31.4]} 15... Ne8
{[%clk 0:02:20.9]} 16. Nf5 {[%clk 0:02:30.7]} 16... Bc7 {[%clk 0:02:15.4]} 17.
f4 {[%clk 0:02:30.2]} 17... g6 {[%clk 0:02:15.7]} 18. Nh6+ {[%clk 0:02:29.2]}
18... Kg7 {[%clk 0:02:11.3]} 19. Ng4 {[%clk 0:02:29.6]} 19... exf4 {[%clk
0:02:08.7]} 20. gxf4 {[%clk 0:02:29.5]} 20... h5 {[%clk 0:02:09]} 21. Nf2 {[%clk
0:02:29.2]} 21... Bxf4 {[%clk 0:02:07]} 22. Nh3 {[%clk 0:02:27.6]} 22... Be3+
{[%clk 0:02:06.7]} 23. Kh1 {[%clk 0:02:27.8]} 23... Ne5 {[%clk 0:02:07]} 24. Nf3
{[%clk 0:02:27.2]} 24... Ng4 {[%clk 0:02:05.2]} 25. Qe2 {[%clk 0:02:25.3]} 25...
Kg8 {[%clk 0:02:00.4]} 26. Nhg5 {[%clk 0:02:21.7]} 26... Bxg5 {[%clk 0:01:58.6]}
27. Nxg5 {[%clk 0:02:21.1]} 27... Qxg5 {[%clk 0:01:59.5]} 28. Bc1 {[%clk
0:02:19.6]} 28... Ne3 {[%clk 0:01:55.4]} 29. Rf3 {[%clk 0:02:17]} 29... Qxg2+
{[%clk 0:01:54.6]} 30. Qxg2 {[%clk 0:02:17.7]} 30... Nxg2 {[%clk 0:01:55.5]} 31.
Kxg2 {[%clk 0:02:18.6]} 31... Ng7 {[%clk 0:01:52.3]} 32. Bg5 {[%clk 0:02:18.7]}
32... Rab8 {[%clk 0:01:49.3]} 33. Rbf1 {[%clk 0:02:16.6]} 33... Rb2+ {[%clk
0:01:48.9]} 34. Kh3 {[%clk 0:02:16.4]} 34... Ne6 {[%clk 0:01:48.5]} 35. Bf6
{[%clk 0:02:15]} 35... Bd7 {[%clk 0:01:46.8]} 36. Kh4 {[%clk 0:02:14.8]} 36...
Rxh2+ {[%clk 0:01:45.6]} 37. Rh3 {[%clk 0:02:15.4]} 37... Rxh3+ {[%clk
0:01:45.5]} 38. Kxh3 {[%clk 0:02:16.3]} 38... Nf4+ {[%clk 0:01:44.2]} 39. Kg3
{[%clk 0:02:15.6]} 39... Nxd3 {[%clk 0:01:41.2]} 40. Rb1 {[%clk 0:02:15.3]}
40... Re8 {[%clk 0:01:34.1]} 41. Kf3 {[%clk 0:02:12.5]} 41... Ne5+ {[%clk
0:01:34.1]} 42. Kf4 {[%clk 0:02:12]} 42... Ng4 {[%clk 0:01:33.8]} 43. Kg5 {[%clk
0:02:07.3]} 43... Nxf6 {[%clk 0:01:32.1]} 44. Kxf6 {[%clk 0:02:08.2]} 44... Re6+
{[%clk 0:01:32.4]} 45. Kg5 {[%clk 0:02:07.7]} 45... Rxe4 {[%clk 0:01:32.7]} 46.
Kf6 {[%clk 0:02:06.4]} 46... Re6+ {[%clk 0:01:32]} 47. Kg5 {[%clk 0:02:06.5]}
47... Kg7 {[%clk 0:01:32.5]} 48. Rb7 {[%clk 0:02:05.8]} 48... Re4 {[%clk
0:01:32]} 49. Rxd7 {[%clk 0:02:05.4]} 49... Rg4# {[%clk 0:01:32.1]} 0-1

[Event "Late-Titled-Tuesday-Blitz-September-05-2023"]
[Site "Chess.com"]
[Date "2023.09.05"]
[Round "8"]
[White "FairChess_on_YouTube"]
[Black "Chessdreamer2020"]
[Result "1-0"]
[WhiteElo "3026"]
[BlackElo "2524"]
[TimeControl "180+1"]
[EndTime "15:26:06 PDT"]
[Termination "FairChess_on_YouTube won by resignation"]

1. b3 {[%clk 0:03:00.9]} 1... c5 {[%clk 0:02:58.5]} 2. Bb2 {[%clk 0:03:01.3]}
2... Nc6 {[%clk 0:02:57.9]} 3. Nf3 {[%clk 0:03:01.3]} 3... d5 {[%clk 0:02:56.3]}
4. e3 {[%clk 0:03:01.6]} 4... a6 {[%clk 0:02:56.7]} 5. Be2 {[%clk 0:02:59.5]}
5... Nf6 {[%clk 0:02:56.9]} 6. O-O {[%clk 0:02:59.6]} 6... Bg4 {[%clk
0:02:57.1]} 7. h3 {[%clk 0:02:57.4]} 7... Bh5 {[%clk 0:02:57.1]} 8. d4 {[%clk
0:02:56.7]} 8... e6 {[%clk 0:02:57]} 9. Nbd2 {[%clk 0:02:56.1]} 9... Be7 {[%clk
0:02:57]} 10. dxc5 {[%clk 0:02:56.1]} 10... Bxc5 {[%clk 0:02:56.9]} 11. c4
{[%clk 0:02:56.7]} 11... O-O {[%clk 0:02:56]} 12. Rc1 {[%clk 0:02:55.5]} 12...
Be7 {[%clk 0:02:55.1]} 13. cxd5 {[%clk 0:02:53.6]} 13... Nxd5 {[%clk 0:02:54.8]}
14. Nc4 {[%clk 0:02:54.2]} 14... Bf6 {[%clk 0:02:45.6]} 15. Ba3 {[%clk
0:02:53.2]} 15... Be7 {[%clk 0:02:44.3]} 16. Bb2 {[%clk 0:02:52.2]} 16... Bf6
{[%clk 0:02:44.3]} 17. Qd2 {[%clk 0:02:50.7]} 17... Bxb2 {[%clk 0:02:38.1]} 18.
Qxb2 {[%clk 0:02:51.6]} 18... Qf6 {[%clk 0:02:34.7]} 19. Qxf6 {[%clk 0:02:51.5]}
19... Nxf6 {[%clk 0:02:34.6]} 20. Nd6 {[%clk 0:02:52.1]} 20... Nd8 {[%clk
0:02:23.3]} 21. g4 {[%clk 0:02:48.6]} 21... Bg6 {[%clk 0:02:22.9]} 22. Ne5
{[%clk 0:02:49.1]} 22... Ne8 {[%clk 0:02:03.2]} 23. Rfd1 {[%clk 0:02:46.8]}
23... Nxd6 {[%clk 0:02:02.1]} 24. Rxd6 {[%clk 0:02:47.7]} 24... Be4 {[%clk
0:01:53.4]} 25. Rc7 {[%clk 0:02:42.8]} 25... Nc6 {[%clk 0:01:33.8]} 26. Nd7
{[%clk 0:02:23]} 26... Rfd8 {[%clk 0:01:32.7]} 27. f3 {[%clk 0:02:23]} 27... Bb1
{[%clk 0:01:19.1]} 28. Rxb7 {[%clk 0:02:22.8]} 28... Bxa2 {[%clk 0:01:05.5]} 29.
Rxc6 {[%clk 0:02:21.9]} 29... Bxb3 {[%clk 0:00:59.8]} 30. Rxb3 {[%clk
0:02:19.2]} 30... Rxd7 {[%clk 0:01:00.2]} 31. Rxa6 {[%clk 0:02:19.4]} 31... Rad8
{[%clk 0:00:56.8]} 32. Kf2 {[%clk 0:02:19.3]} 32... Rd2 {[%clk 0:00:57]} 33.
Rab6 {[%clk 0:02:17.4]} 33... Rc2 {[%clk 0:00:55]} 34. Rb8 {[%clk 0:02:17]} 1-0

[Event "Late-Titled-Tuesday-Blitz-September-05-2023"]
[Site "Chess.com"]
[Date "2023.09.05"]
[Round "8"]
[White "schack_vit"]
[Black "kikoveiga"]
[Result "0-1"]
[WhiteElo "2424"]
[BlackElo "2575"]
[TimeControl "180+1"]
[EndTime "15:26:19 PDT"]
[Termination "kikoveiga won by resignation"]

1. c4 {[%clk 0:03:00.9]} 1... Nf6 {[%clk 0:02:55.3]} 2. g3 {[%clk 0:03:01.3]}
2... e6 {[%clk 0:02:54.4]} 3. Bg2 {[%clk 0:02:59.2]} 3... c5 {[%clk 0:02:54.7]}
4. Nf3 {[%clk 0:02:56.9]} 4... Be7 {[%clk 0:02:53]} 5. O-O {[%clk 0:02:55.5]}
5... O-O {[%clk 0:02:53.6]} 6. d4 {[%clk 0:02:51.8]} 6... cxd4 {[%clk
0:02:53.4]} 7. Nxd4 {[%clk 0:02:52.7]} 7... Nc6 {[%clk 0:02:51.2]} 8. Nc3 {[%clk
0:02:50.8]} 8... d5 {[%clk 0:02:37.2]} 9. cxd5 {[%clk 0:02:50.5]} 9... exd5
{[%clk 0:02:37.7]} 10. a3 {[%clk 0:02:40.6]} 10... h6 {[%clk 0:02:33.3]} 11. b4
{[%clk 0:02:40.2]} 11... Bg4 {[%clk 0:02:20.8]} 12. Bb2 {[%clk 0:02:32.2]} 12...
Ne5 {[%clk 0:02:13.2]} 13. h3 {[%clk 0:02:30.8]} 13... Bc8 {[%clk 0:02:01.3]}
14. Nf5 {[%clk 0:02:27.8]} 14... Bxf5 {[%clk 0:02:00.1]} 15. Nxd5 {[%clk
0:02:19.8]} 15... Nxd5 {[%clk 0:01:53.4]} 16. Bxe5 {[%clk 0:02:18.6]} 16... Bf6
{[%clk 0:01:46]} 17. Bxf6 {[%clk 0:02:09.6]} 17... Nxf6 {[%clk 0:01:46.9]} 18.
Qb3 {[%clk 0:02:05.6]} 18... Qb6 {[%clk 0:01:44.4]} 19. Rac1 {[%clk 0:02:00.4]}
19... Rac8 {[%clk 0:01:40.5]} 20. a4 {[%clk 0:02:00.1]} 20... a5 {[%clk
0:01:39.9]} 21. b5 {[%clk 0:02:00]} 21... Rfe8 {[%clk 0:01:35.8]} 22. Qf3 {[%clk
0:01:56.3]} 22... Be4 {[%clk 0:01:03.7]} 23. Qf4 {[%clk 0:01:49.5]} 23... Bxg2
{[%clk 0:00:58.1]} 24. Kxg2 {[%clk 0:01:50.4]} 24... Qe6 {[%clk 0:00:51.3]} 25.
Rxc8 {[%clk 0:01:42]} 25... Rxc8 {[%clk 0:00:50.7]} 26. Qf3 {[%clk 0:01:42]}
26... Qe4 {[%clk 0:00:49.6]} 0-1